fUST/lending_fUST_20250405
["ID","MTS","AMOUNT","RATE_DAILY","PERIOD"]
[357172721,1743858651048,-500.0,0.00021095,2]
[357172722,1743858651058,-151.0,0.000211,3]
[357172723,1743858651068,-151.0,0.000211,3]
[357172724,1743858651079,-12522.71377557,0.000211,3]
[357172725,1743858651089,-4590.84,0.00021259,2]
[357172726,1743858651099,-500.0,0.00021369,2]
[357172727,1743858651109,-500.0,0.00021369,2]
[357172728,1743858651119,-500.0,0.00021369,2]
[357172729,1743858651131,-646.83,0.00021369,2]
[357172730,1743858651142,-500.0,0.00021369,2]
[357172731,1743858651152,-633.43891501,0.00021369,2]
[357172732,1743858651162,-500.0,0.00021369,2]
[357172733,1743858651173,-500.0,0.00021369,2]
[357172734,1743858651190,-500.0,0.00021369,2]
[357172735,1743858651207,-500.0,0.00021369,2]
[357172736,1743858651220,-500.0,0.00021369,2]
[357172737,1743858651231,-500.0,0.00021369,2]
[357172738,1743858651242,-500.0,0.00021369,2]
[357172739,1743858651252,-1749.15,0.00021369,2]
[357172740,1743858651262,-500.0,0.00021369,2]
[357172741,1743858651270,-508.79,0.00021369,2]
[357172742,1743858651281,-500.0,0.00021369,2]
[357172743,1743858651290,-1750.68,0.00021369,2]
[357172744,1743858651301,-854.97,0.00021369,2]
[357172745,1743858651312,-3194.54,0.00021369,2]
[357172746,1743858651323,-500.0,0.00021369,2]
[357172747,1743858651334,-500.0,0.00021369,2]
[357172748,1743858651345,-500.0,0.00021369,2]
[357172749,1743858651356,-549.57,0.00021369,2]
[357172750,1743858651366,-1304.9,0.00021369,2]
[357172751,1743858651377,-500.0,0.00021369,2]
[357172752,1743858651388,-808.65,0.00021369,2]
[357172753,1743858651398,-500.0,0.00021369,2]
[357172754,1743858651409,-500.0,0.00021369,2]
[357172755,1743858651419,-500.0,0.00021369,2]
[357172756,1743858651430,-500.0,0.00021369,2]
[357172757,1743858651440,-500.0,0.00021369,2]
[357172758,1743858651450,-1716.09,0.00021369,2]
[357172759,1743858651461,-500.0,0.00021369,2]
[357172760,1743858651472,-2331.95,0.00021369,2]
[357172761,1743858651483,-500.0,0.00021369,2]
[357172762,1743858651494,-500.0,0.00021369,2]
[357172763,1743858651505,-500.0,0.00021369,2]
[357172764,1743858651515,-500.0,0.00021369,2]
[357172765,1743858651525,-776.09,0.00021369,2]
[357172766,1743858651535,-590.42,0.00021369,2]
[357172767,1743858651545,-624.89,0.00021369,2]
[357172768,1743858651555,-511.15006697,0.00021369,2]
[357172769,1743858651564,-66310.53,0.00021369,2]
[357172770,1743858651574,-670.7,0.00021369,2]
[357172771,1743858651584,-500.0,0.00021369,2]
[357172772,1743858651594,-901.27,0.00021369,2]
[357172773,1743858651604,-500.0,0.00021369,2]
[357172774,1743858651614,-500.0,0.00021369,2]
[357172775,1743858651625,-500.0,0.00021369,2]
[357172776,1743858651635,-500.0,0.00021369,2]
[357172777,1743858651646,-598.10079998,0.00021369,2]
[357172778,1743858651656,-631.0,0.00021369,2]
[357172779,1743858651666,-500.0,0.00021369,2]
[357172780,1743858651676,-500.0,0.00021369,2]
[357172781,1743858651686,-500.0,0.00021369,2]
[357172782,1743858651695,-500.0,0.00021369,2]
[357172783,1743858651705,-500.0,0.00021369,2]
[357172784,1743858651716,-500.0,0.00021369,2]
[357172785,1743858651726,-500.0,0.00021369,2]
[357172786,1743858651735,-1988.45,0.00021369,2]
[357172787,1743858651850,-691.0,0.00021369,2]
[357172788,1743858651860,-500.0,0.00021369,2]
[357172789,1743858651870,-581.14,0.00021369,2]
[357172790,1743858651880,-500.0,0.00021369,2]
[357172791,1743858651890,-3354.94,0.00021369,2]
[357172792,1743858651899,-500.0,0.00021369,2]
[357172793,1743858651909,-500.0,0.00021369,2]
[357172794,1743858651918,-500.0,0.00021369,2]
[357172795,1743858651927,-500.0,0.00021369,2]
[357172796,1743858651937,-500.0,0.00021369,2]
[357172797,1743858651948,-500.0,0.00021369,2]
[357172798,1743858651957,-722.15,0.00021369,2]
[357172799,1743858651967,-898.1,0.00021369,2]
[357172800,1743858651976,-500.0,0.00021369,2]
[357172801,1743858651985,-3000.0,0.00021472,2]
[357172802,1743858651995,-151.0,0.000215,3]
[357172803,1743858652005,-160.0,0.000215,3]
[357172804,1743858652014,-4590.84,0.00021533,2]
[357172805,1743858652023,-7789.6112572,0.00021555,3]
[357172806,1743858652033,-151.0,0.000216,4]
[357172807,1743858652044,-151.0,0.00021643,2]
[357172808,1743858652056,-151.0,0.00021643,2]
[357172809,1743858652070,-500.0,0.00021643,2]
[357172810,1743858652079,-178.65575698,0.00021643,2]
[357172811,1743858652089,-500.0,0.00021643,2]
[357172812,1743858652099,-500.0,0.00021643,2]
[357172813,1743858652109,-168.17825648,0.00021643,2]
[357172814,1743858652118,-249.14769512,0.00021643,2]
[357172815,1743858652128,-646.83,0.00021643,2]
[357172816,1743858652142,-500.0,0.00021643,2]
[357172817,1743858652152,-151.54034234,0.00021643,2]
[357172818,1743858652162,-410.33,0.00021643,2]
[357172819,1743858652171,-150.44238954,0.00021643,2]
[357172820,1743858652182,-230.40449057,0.00021643,2]
[357172821,1743858652192,-152.30582961,0.00021643,2]
[357172822,1743858652202,-500.0,0.00021643,2]
[357172823,1743858652211,-353.87,0.00021643,2]
[357172824,1743858652223,-500.0,0.00021643,2]
[357172825,1743858652233,-500.0,0.00021643,2]
[357172826,1743858652242,-500.0,0.00021643,2]
[357172827,1743858652251,-500.0,0.00021643,2]
[357172828,1743858652263,-1749.15,0.00021643,2]
[357172829,1743858652273,-500.0,0.00021643,2]
[357172830,1743858652284,-508.79,0.00021643,2]
[357172831,1743858652294,-500.0,0.00021643,2]
[357172832,1743858652303,-1750.68,0.00021643,2]
[357172833,1743858652314,-854.97,0.00021643,2]
[357172834,1743858652324,-3194.54,0.00021643,2]
[357172835,1743858652334,-500.0,0.00021643,2]
[357172836,1743858652344,-500.0,0.00021643,2]
[357172837,1743858652354,-500.0,0.00021643,2]
[357172838,1743858652363,-549.57,0.00021643,2]
[357172839,1743858652374,-1304.9,0.00021643,2]
[357172840,1743858652384,-334.63,0.00021643,2]
[357172841,1743858652395,-808.65,0.00021643,2]
[357172842,1743858652404,-500.0,0.00021643,2]
[357172843,1743858652415,-500.0,0.00021643,2]
[357172844,1743858652425,-500.0,0.00021643,2]
[357172845,1743858652435,-500.0,0.00021643,2]
[357172846,1743858652444,-1716.09,0.00021643,2]
[357172847,1743858652454,-500.0,0.00021643,2]
[357172848,1743858652465,-500.0,0.00021643,2]
[357172849,1743858652475,-2331.95,0.00021643,2]
[357172850,1743858652485,-500.0,0.00021643,2]
[357172851,1743858652494,-500.0,0.00021643,2]
[357172852,1743858652504,-500.0,0.00021643,2]
[357172853,1743858652514,-500.0,0.00021643,2]
[357172854,1743858652524,-500.0,0.00021643,2]
[357172855,1743858652534,-500.0,0.00021643,2]
[357172856,1743858652544,-500.0,0.00021643,2]
[357172857,1743858652554,-776.09,0.00021643,2]
[357172858,1743858652564,-590.42,0.00021643,2]
[357172859,1743858652574,-624.89,0.00021643,2]
[357172860,1743858652583,-66310.53,0.00021643,2]
[357172861,1743858652593,-670.7,0.00021643,2]
[357172862,1743858652602,-500.0,0.00021643,2]
[357172863,1743858652612,-901.27,0.00021643,2]
[357172864,1743858652622,-500.0,0.00021643,2]
[357172865,1743858652632,-500.0,0.00021643,2]
[357172866,1743858652647,-500.0,0.00021643,2]
[357172867,1743858652656,-500.0,0.00021643,2]
[357172868,1743858652666,-631.0,0.00021643,2]
[357172869,1743858652676,-151.37779809,0.00021643,2]
[357172870,1743858652686,-500.0,0.00021643,2]
[357172871,1743858652696,-500.0,0.00021643,2]
[357172872,1743858652706,-500.0,0.00021643,2]
[357172873,1743858652716,-500.0,0.00021643,2]
[357172874,1743858652726,-500.0,0.00021643,2]
[357172875,1743858652736,-500.0,0.00021643,2]
[357172876,1743858652746,-575.02,0.00021643,2]
[357172877,1743858652756,-1988.45,0.00021643,2]
[357172878,1743858652765,-691.0,0.00021643,2]
[357172879,1743858652775,-274.66403332,0.00021643,2]
[357172880,1743858652784,-500.0,0.00021643,2]
[357172881,1743858652794,-3354.94,0.00021643,2]
[357172882,1743858652803,-196.08,0.00021643,2]
[357172883,1743858652813,-500.0,0.00021643,2]
[357172884,1743858652823,-500.0,0.00021643,2]
[357172885,1743858652832,-500.0,0.00021643,2]
[357172886,1743858652841,-500.0,0.00021643,2]
[357172887,1743858652851,-287.06,0.00021643,2]
[357172888,1743858652861,-722.15,0.00021643,2]
[357172889,1743858652871,-206.66829944,0.00021643,2]
[357172890,1743858652880,-208.98292929,0.00021643,2]
[357172891,1743858652890,-200.46188643,0.00021643,2]
[357172892,1743858652900,-898.1,0.00021643,2]
[357172893,1743858652910,-151.59513644,0.00021643,2]
[357172894,1743858652920,-500.0,0.0002165,2]
[357172895,1743858652930,-500.0,0.0002167,2]
[357172896,1743858652939,-652.70189344,0.0002167,2]
[357172897,1743858652949,-170.76695143,0.0002167,2]
[357172898,1743858652959,-500.0,0.0002167,2]
[357172899,1743858652970,-500.0,0.0002167,2]
[357172900,1743858652980,-500.0,0.0002167,2]
[357172901,1743858652990,-203.68263412,0.0002167,2]
[357172902,1743858653000,-500.0,0.00021698,2]
[357172903,1743858653010,-500.0,0.00021698,2]
[357172904,1743858653020,-500.0,0.00021698,2]
[357172905,1743858653030,-500.0,0.00021698,2]
[357172906,1743858653040,-14645.20274822,0.00021698,2]
[357172907,1743858653118,-777.59478089,0.00021725,2]
[357172908,1743858653129,-500.0,0.00021725,2]
[357172909,1743858653143,-505.46047999,0.00021725,2]
[357172910,1743858653154,-809.77550537,0.00021725,2]
[357172911,1743858653165,-574.41674254,0.00021753,2]
[357172912,1743858653175,-500.0,0.00021805,2]
[357172913,1743858653195,-4590.84,0.00021807,2]
[357172914,1743858653208,-151.0,0.000219,3]
[357172915,1743858653220,-151.0,0.00021904,2]
[357172916,1743858653230,-240.16946388,0.00021917,2]
[357172917,1743858653241,-646.83,0.00021917,2]
[357172918,1743858653252,-500.0,0.00021917,2]
[357172919,1743858653263,-572.4617857,0.00021917,2]
[357172920,1743858653273,-500.0,0.00021917,2]
[357172921,1743858653284,-500.0,0.00021917,2]
[357172922,1743858653294,-500.0,0.00021917,2]
[357172923,1743858653305,-207.06,0.00021917,2]
[357172924,1743858653315,-1749.15,0.00021917,2]
[357172925,1743858653325,-500.0,0.00021917,2]
[357172926,1743858653335,-508.79,0.00021917,2]
[357172927,1743858653347,-500.0,0.00021917,2]
[357172928,1743858653361,-1750.68,0.00021917,2]
[357172929,1743858653372,-854.97,0.00021917,2]
[357172930,1743858653383,-3194.54,0.00021917,2]
[357172931,1743858653393,-500.0,0.00021917,2]
[357172932,1743858653403,-500.0,0.00021917,2]
[357172933,1743858653413,-500.0,0.00021917,2]
[357172934,1743858653423,-549.57,0.00021917,2]
[357172935,1743858653434,-1304.9,0.00021917,2]
[357172936,1743858653444,-808.65,0.00021917,2]
[357172937,1743858653455,-500.0,0.00021917,2]
[357172938,1743858653465,-500.0,0.00021917,2]
[357172939,1743858653476,-500.0,0.00021917,2]
[357172940,1743858653487,-500.0,0.00021917,2]
[357172941,1743858653498,-1716.09,0.00021917,2]
[357172942,1743858653508,-500.0,0.00021917,2]
[357172943,1743858653518,-500.0,0.00021917,2]
[357172944,1743858653528,-2331.95,0.00021917,2]
[357172945,1743858653538,-500.0,0.00021917,2]
[357172946,1743858653548,-500.0,0.00021917,2]
[357172947,1743858653558,-500.0,0.00021917,2]
[357172948,1743858653569,-500.0,0.00021917,2]
[357172949,1743858653579,-776.09,0.00021917,2]
[357172950,1743858653590,-590.42,0.00021917,2]
[357172951,1743858653600,-624.89,0.00021917,2]
[357172952,1743858653610,-66310.53,0.00021917,2]
[357172953,1743858653621,-670.7,0.00021917,2]
[357172954,1743858653631,-500.0,0.00021917,2]
[357172955,1743858653641,-901.27,0.00021917,2]
[357172956,1743858653651,-500.0,0.00021917,2]
[357172957,1743858653660,-608.52,0.00021917,2]
[357172958,1743858653669,-500.0,0.00021917,2]
[357172959,1743858653679,-500.0,0.00021917,2]
[357172960,1743858653688,-631.0,0.00021917,2]
[357172961,1743858653698,-500.0,0.00021917,2]
[357172962,1743858653707,-500.0,0.00021917,2]
[357172963,1743858653717,-500.0,0.00021917,2]
[357172964,1743858653726,-500.0,0.00021917,2]
[357172965,1743858653736,-500.0,0.00021917,2]
[357172966,1743858653746,-500.0,0.00021917,2]
[357172967,1743858653755,-1988.45,0.00021917,2]
[357172968,1743858653765,-691.0,0.00021917,2]
[357172969,1743858653775,-500.0,0.00021917,2]
[357172970,1743858653784,-3354.94,0.00021917,2]
[357172971,1743858653794,-500.0,0.00021917,2]
[357172972,1743858653804,-500.0,0.00021917,2]
[357172973,1743858653814,-500.0,0.00021917,2]
[357172974,1743858653825,-722.15,0.00021917,2]
[357172975,1743858653837,-898.1,0.00021917,2]
[357172976,1743858653847,-1368.0,0.00022,2]
[357172977,1743858653858,-151.0,0.00022,4]
[357172978,1743858653868,-2000.0,0.00022,4]
[357172979,1743858653878,-609.26552881,0.0002208,2]
[357172980,1743858653888,-4590.84,0.00022081,2]
[357172981,1743858653899,-151.0,0.00022191,7]
[357172982,1743858653908,-151.0,0.00022191,7]
[357172983,1743858653917,-646.83,0.00022191,2]
[357172984,1743858653927,-500.0,0.00022191,2]
[357172985,1743858653936,-500.0,0.00022191,2]
[357172986,1743858653945,-361.38,0.00022191,2]
[357172987,1743858653955,-1749.15,0.00022191,2]
[357172988,1743858653964,-500.0,0.00022191,2]
[357172989,1743858653974,-508.79,0.00022191,2]
[357172990,1743858653983,-500.0,0.00022191,2]
[357172991,1743858653993,-1750.68,0.00022191,2]
[357172992,1743858654003,-854.97,0.00022191,2]
[357172993,1743858654012,-3194.54,0.00022191,2]
[357172994,1743858654021,-500.0,0.00022191,2]
[357172995,1743858654031,-500.0,0.00022191,2]
[357172996,1743858654040,-500.0,0.00022191,2]
[357172997,1743858654050,-549.57,0.00022191,2]
[357172998,1743858654060,-1304.9,0.00022191,2]
[357172999,1743858654070,-808.65,0.00022191,2]
[357173000,1743858654079,-500.0,0.00022191,2]
[357173001,1743858654089,-500.0,0.00022191,2]
[357173002,1743858654098,-500.0,0.00022191,2]
[357173003,1743858654107,-500.0,0.00022191,2]
[357173004,1743858654117,-1716.09,0.00022191,2]
[357173005,1743858654127,-500.0,0.00022191,2]
[357173006,1743858654139,-500.0,0.00022191,2]
[357173007,1743858654149,-2331.95,0.00022191,2]
[357173008,1743858654159,-500.0,0.00022191,2]
[357173009,1743858654169,-500.0,0.00022191,2]
[357173010,1743858654181,-500.0,0.00022191,2]
[357173011,1743858654191,-507.29,0.00022191,2]
[357173012,1743858654200,-776.09,0.00022191,2]
[357173013,1743858654211,-590.42,0.00022191,2]
[357173014,1743858654222,-624.89,0.00022191,2]
[357173015,1743858654231,-66310.53,0.00022191,2]
[357173016,1743858654241,-670.7,0.00022191,2]
[357173017,1743858654250,-470.4,0.00022191,2]
[357173018,1743858654334,-901.27,0.00022191,2]
[357173019,1743858654344,-500.0,0.00022191,2]
[357173020,1743858654354,-500.0,0.00022191,2]
[357173021,1743858654363,-500.0,0.00022191,2]
[357173022,1743858654373,-631.0,0.00022191,2]
[357173023,1743858654383,-500.0,0.00022191,2]
[357173024,1743858654392,-500.0,0.00022191,2]
[357173025,1743858654401,-500.0,0.00022191,2]
[357173026,1743858654411,-500.0,0.00022191,2]
[357173027,1743858654421,-500.0,0.00022191,2]
[357173028,1743858654431,-500.0,0.00022191,2]
[357173029,1743858654441,-1988.45,0.00022191,2]
[357173030,1743858654450,-691.0,0.00022191,2]
[357173031,1743858654460,-500.0,0.00022191,2]
[357173032,1743858654470,-3354.94,0.00022191,2]
[357173033,1743858654480,-500.0,0.00022191,2]
[357173034,1743858654490,-500.0,0.00022191,2]
[357173035,1743858654499,-500.0,0.00022191,2]
[357173036,1743858654509,-722.15,0.00022191,2]
[357173037,1743858654518,-898.1,0.00022191,2]
[357173038,1743858654528,-250.0,0.000222,2]
[357173039,1743858654538,-250.0,0.000222,2]
[357173040,1743858654548,-250.0,0.000222,2]
[357173041,1743858654558,-250.0,0.000222,2]
[357173042,1743858654567,-250.0,0.000222,2]
[357173043,1743858654576,-250.0,0.000222,2]
[357173044,1743858654586,-250.0,0.000222,2]
[357173045,1743858654595,-7789.6112572,0.0002221,3]
[357173046,1743858654604,-4590.84,0.00022355,2]
[357173047,1743858654613,-151.0,0.000224,6]
[357173048,1743858654622,-164230.00422106,0.00022464,2]
[357173049,1743858654632,-646.83,0.00022465,2]
[357173050,1743858654642,-500.0,0.00022465,2]
[357173051,1743858654651,-500.0,0.00022465,2]
[357173052,1743858654661,-1749.15,0.00022465,2]
[357173053,1743858654671,-500.0,0.00022465,2]
[357173054,1743858654680,-508.79,0.00022465,2]
[357173055,1743858654689,-500.0,0.00022465,2]
[357173056,1743858654699,-1750.68,0.00022465,2]
[357173057,1743858654708,-854.97,0.00022465,2]
[357173058,1743858654717,-3194.54,0.00022465,2]
[357173059,1743858654727,-500.0,0.00022465,2]
[357173060,1743858654736,-500.0,0.00022465,2]
[357173061,1743858654747,-549.57,0.00022465,2]
[357173062,1743858654756,-1304.9,0.00022465,2]
[357173063,1743858654765,-283.9,0.00022465,2]
[357173064,1743858654774,-808.65,0.00022465,2]
[357173065,1743858654783,-509.42260961,0.00022465,2]
[357173066,1743858654792,-500.0,0.00022465,2]
[357173067,1743858654801,-500.0,0.00022465,2]
[357173068,1743858654810,-1716.09,0.00022465,2]
[357173069,1743858654819,-500.0,0.00022465,2]
[357173070,1743858654828,-2331.95,0.00022465,2]
[357173071,1743858654837,-500.0,0.00022465,2]
[357173072,1743858654847,-406.62,0.00022465,2]
[357173073,1743858654856,-500.0,0.00022465,2]
[357173074,1743858654865,-776.09,0.00022465,2]
[357173075,1743858654875,-590.42,0.00022465,2]
[357173076,1743858654884,-624.89,0.00022465,2]
[357173077,1743858654894,-66310.53,0.00022465,2]
[357173078,1743858654903,-670.7,0.00022465,2]
[357173079,1743858654912,-901.27,0.00022465,2]
[357173080,1743858654922,-500.0,0.00022465,2]
[357173081,1743858654931,-500.0,0.00022465,2]
[357173082,1743858654940,-511.56,0.00022465,2]
[357173083,1743858654949,-631.0,0.00022465,2]
[357173084,1743858654959,-312.77,0.00022465,2]
[357173085,1743858654969,-558.6,0.00022465,2]
[357173086,1743858654978,-500.0,0.00022465,2]
[357173087,1743858654988,-1988.45,0.00022465,2]
[357173088,1743858654997,-691.0,0.00022465,2]
[357173089,1743858655007,-500.0,0.00022465,2]
[357173090,1743858655016,-3354.94,0.00022465,2]
[357173091,1743858655026,-500.0,0.00022465,2]
[357173092,1743858655035,-500.0,0.00022465,2]
[357173093,1743858655045,-500.0,0.00022465,2]
[357173094,1743858655054,-722.15,0.00022465,2]
[357173095,1743858655063,-898.1,0.00022465,2]
[357173096,1743858655072,-3000.0,0.00022568,2]
[357173097,1743858655081,-4590.84,0.00022629,2]
[357173098,1743858655090,-151.0,0.00022629,7]
[357173099,1743858655099,-151.0,0.00022629,7]
[357173100,1743858655108,-646.83,0.00022739,2]
[357173101,1743858655118,-1749.15,0.00022739,2]
[357173102,1743858655127,-508.79,0.00022739,2]
[357173103,1743858655139,-500.0,0.00022739,2]
[357173104,1743858655157,-1750.68,0.00022739,2]
[357173105,1743858655171,-854.97,0.00022739,2]
[357173106,1743858655190,-3194.54,0.00022739,2]
[357173107,1743858655207,-476.25,0.00022739,2]
[357173108,1743858655216,-500.0,0.00022739,2]
[357173109,1743858655227,-549.57,0.00022739,2]
[357173110,1743858655236,-1304.9,0.00022739,2]
[357173111,1743858655245,-808.65,0.00022739,2]
[357173112,1743858655254,-500.0,0.00022739,2]
[357173113,1743858655263,-500.0,0.00022739,2]
[357173114,1743858655272,-1716.09,0.00022739,2]
[357173115,1743858655281,-500.0,0.00022739,2]
[357173116,1743858655291,-2331.95,0.00022739,2]
[357173117,1743858655300,-500.0,0.00022739,2]
[357173118,1743858655310,-776.09,0.00022739,2]
[357173119,1743858655319,-590.42,0.00022739,2]
[357173120,1743858655385,-624.89,0.00022739,2]
[357173121,1743858655395,-66310.53,0.00022739,2]
[357173122,1743858655404,-670.7,0.00022739,2]
[357173123,1743858655413,-901.27,0.00022739,2]
[357173124,1743858655423,-500.0,0.00022739,2]
[357173125,1743858655433,-593.92,0.00022739,2]
[357173126,1743858655442,-631.0,0.00022739,2]
[357173127,1743858655452,-500.0,0.00022739,2]
[357173128,1743858655462,-1988.45,0.00022739,2]
[357173129,1743858655472,-691.0,0.00022739,2]
[357173130,1743858655481,-500.0,0.00022739,2]
[357173131,1743858655490,-3354.94,0.00022739,2]
[357173132,1743858655500,-500.0,0.00022739,2]
[357173133,1743858655510,-500.0,0.00022739,2]
[357173134,1743858655519,-722.15,0.00022739,2]
[357173135,1743858655528,-898.1,0.00022739,2]
[357173136,1743858655538,-587.0,0.00022741,2]
[357173137,1743858655547,-150.98501782,0.00022822,2]
[357173138,1743858655556,-7789.6112572,0.00022866,4]
[357173139,1743858655566,-151.0,0.000229,7]
[357173140,1743858655576,-4590.84,0.00022903,2]
[357173141,1743858655586,-201.11567808,0.00023,3]
[357173142,1743858655595,-188.36932548,0.00023,3]
[357173143,1743858655606,-160.0,0.00023,3]
[357173144,1743858655616,-167.0,0.00023,2]
[357173145,1743858655626,-2000.0,0.00023,4]
[357173146,1743858655635,-151.0,0.00023013,7]
[357173147,1743858655645,-207.455073,0.00023013,7]
[357173148,1743858655654,-646.83,0.00023013,2]
[357173149,1743858655664,-1749.15,0.00023013,2]
[357173150,1743858655673,-508.79,0.00023013,2]
[357173151,1743858655682,-306.78,0.00023013,2]
[357173152,1743858655692,-1750.68,0.00023013,2]
[357173153,1743858655701,-854.97,0.00023013,2]
[357173154,1743858655711,-3194.54,0.00023013,2]
[357173155,1743858655721,-500.0,0.00023013,2]
[357173156,1743858655731,-549.57,0.00023013,2]
[357173157,1743858655741,-1304.9,0.00023013,2]
[357173158,1743858655752,-808.65,0.00023013,2]
[357173159,1743858655763,-500.0,0.00023013,2]
[357173160,1743858655773,-500.0,0.00023013,2]
[357173161,1743858655782,-1716.09,0.00023013,2]
[357173162,1743858655791,-500.0,0.00023013,2]
[357173163,1743858655802,-2331.95,0.00023013,2]
[357173164,1743858655812,-500.0,0.00023013,2]
[357173165,1743858655822,-776.09,0.00023013,2]
[357173166,1743858655832,-590.42,0.00023013,2]
[357173167,1743858655845,-624.89,0.00023013,2]
[357173168,1743858655870,-66310.53,0.00023013,2]
[357173169,1743858655888,-670.7,0.00023013,2]
[357173170,1743858655909,-901.27,0.00023013,2]
[357173171,1743858655931,-399.2,0.00023013,2]
[357173172,1743858655950,-631.0,0.00023013,2]
[357173173,1743858655969,-500.0,0.00023013,2]
[357173174,1743858655986,-1988.45,0.00023013,2]
[357173175,1743858656002,-691.0,0.00023013,2]
[357173176,1743858656022,-500.0,0.00023013,2]
[357173177,1743858656043,-3354.94,0.00023013,2]
[357173178,1743858656059,-500.0,0.00023013,2]
[357173179,1743858656077,-500.0,0.00023013,2]
[357173180,1743858656092,-722.15,0.00023013,2]
[357173181,1743858656109,-898.1,0.00023013,2]
[357173182,1743858656123,-150.98501782,0.00023123,2]
[357173183,1743858656140,-150.98501782,0.00023123,2]
[357173184,1743858656157,-150.98501782,0.00023123,2]
[357173185,1743858656172,-150.98501782,0.00023123,2]
[357173186,1743858656186,-4590.84,0.00023177,2]
[357173187,1743858656201,-399.99734932,0.0002318,7]
[357173188,1743858656216,-646.83,0.00023287,2]
[357173189,1743858656231,-1749.15,0.00023287,2]
[357173190,1743858656246,-508.79,0.00023287,2]
[357173191,1743858656260,-1750.68,0.00023287,2]
[357173192,1743858656275,-854.97,0.00023287,2]
[357173193,1743858656289,-3194.54,0.00023287,2]
[357173194,1743858656304,-500.0,0.00023287,2]
[357173195,1743858656319,-549.57,0.00023287,2]
[357173196,1743858656333,-1304.9,0.00023287,2]
[357173197,1743858656347,-808.65,0.00023287,2]
[357173198,1743858656363,-603.72,0.00023287,2]
[357173199,1743858656377,-500.0,0.00023287,2]
[357173200,1743858656392,-1716.09,0.00023287,2]
[357173201,1743858656407,-500.0,0.00023287,2]
[357173202,1743858656422,-2331.95,0.00023287,2]
[357173203,1743858656437,-189.24,0.00023287,2]
[357173204,1743858656453,-776.09,0.00023287,2]
[357173205,1743858656467,-590.42,0.00023287,2]
[357173206,1743858656482,-624.89,0.00023287,2]
[357173207,1743858656498,-66310.53,0.00023287,2]
[357173208,1743858656514,-670.7,0.00023287,2]
[357173209,1743858656530,-901.27,0.00023287,2]
[357173210,1743858656544,-631.0,0.00023287,2]
[357173211,1743858656559,-500.0,0.00023287,2]
[357173212,1743858656575,-1988.45,0.00023287,2]
[357173213,1743858656590,-691.0,0.00023287,2]
[357173214,1743858656702,-500.0,0.00023287,2]
[357173215,1743858656712,-3354.94,0.00023287,2]
[357173216,1743858656721,-500.0,0.00023287,2]
[357173217,1743858656731,-500.0,0.00023287,2]
[357173218,1743858656741,-722.15,0.00023287,2]
[357173219,1743858656750,-898.1,0.00023287,2]
[357173220,1743858656760,-151.43573339,0.00023288,2]